[Event "Titled Tuesday Blitz October 31 Late 2023"]
[White "The_Straightforward_Rook"]
[Black "Rose, Felix"]
[BlackFideId "5105722"]
[WhiteElo "2502"]
[BlackElo "2336"]
[Result "1/2-1/2"]
[Round "4"]
[TimeControl "180+1"]
[Date "2023.10.31"]
[WhiteClock "0:00:12"]
[BlackClock "0:00:25"]
[Board "110"]

1. e4 {[%clk 0:02:28]}  e5 {[%clk 0:02:58]} 2. Nf3 {[%clk 0:02:27]}  Nc6 {[%clk 0:02:58]} 3. Bc4 {[%clk 0:02:28]}  Nf6 {[%clk 0:02:57]} 4. d3 {[%clk 0:02:28]}  Bc5 {[%clk 0:02:57]} 5. Bg5 {[%clk 0:02:26]}  h6 {[%clk 0:02:55]} 6. Bh4 {[%clk 0:02:26]}  Be7 {[%clk 0:02:54]} 7. c3 {[%clk 0:02:25]}  d6 {[%clk 0:02:54]} 8. Nbd2 {[%clk 0:02:24]}  a6 {[%clk 0:02:41]} 9. a4 {[%clk 0:02:23]}  Na5 {[%clk 0:02:38]} 10. Ba2 {[%clk 0:02:21]}  c5 {[%clk 0:02:38]} 11. Nf1 {[%clk 0:02:12]}  Be6 {[%clk 0:02:37]} 12. Ne3 {[%clk 0:02:10]}  Bxa2 {[%clk 0:02:35]} 13. Rxa2 {[%clk 0:02:10]}  Nc6 {[%clk 0:02:35]} 14. Bxf6 {[%clk 0:02:06]}  Bxf6 {[%clk 0:02:28]} 15. Qb3 {[%clk 0:02:05]}  Rb8 {[%clk 0:02:18]} 16. Nd5 {[%clk 0:01:48]}  O-O {[%clk 0:02:10]} 17. O-O {[%clk 0:01:47]}  g6 {[%clk 0:02:01]} 18. h3 {[%clk 0:01:36]}  Kg7 {[%clk 0:02:01]} 19. Nh2 {[%clk 0:01:35]}  Bg5 {[%clk 0:01:53]} 20. g3 {[%clk 0:01:28]}  f5 {[%clk 0:01:47]} 21. f4 {[%clk 0:01:25]}  Bf6 {[%clk 0:01:41]} 22. Kh1 {[%clk 0:01:09]}  fxe4 {[%clk 0:01:36]} 23. dxe4 {[%clk 0:01:07]}  exf4 {[%clk 0:01:32]} 24. gxf4 {[%clk 0:01:06]}  Qe8 {[%clk 0:01:23]} 25. Qc4 {[%clk 0:01:02]}  Qe6 {[%clk 0:01:00]} 26. Ng4 {[%clk 0:01:00]}  Bh4 {[%clk 0:00:46]} 27. Qd3 {[%clk 0:00:54]}  Rbe8 {[%clk 0:00:41]} 28. Raa1 {[%clk 0:00:29]}  Qxe4+ {[%clk 0:00:36]} 29. Qxe4 {[%clk 0:00:30]}  Rxe4 {[%clk 0:00:37]} 30. Rad1 {[%clk 0:00:31]}  h5 {[%clk 0:00:32]} 31. Nf2 {[%clk 0:00:30]}  Re2 {[%clk 0:00:24]} 32. Nd3 {[%clk 0:00:25]}  c4 {[%clk 0:00:22]} 33. Nc1 {[%clk 0:00:19]}  Rxb2 {[%clk 0:00:20]} 34. Nc7 {[%clk 0:00:20]}  Rf6 {[%clk 0:00:19]} 35. Ne8+ {[%clk 0:00:19]}  Kf7 {[%clk 0:00:20]} 36. Nxf6 {[%clk 0:00:20]}  Bxf6 {[%clk 0:00:20]} 37. Rxd6 {[%clk 0:00:21]}  Bxc3 {[%clk 0:00:20]} 38. Rd7+ {[%clk 0:00:21]}  Kf6 {[%clk 0:00:20]} 39. Rfd1 {[%clk 0:00:20]}  Bb4 {[%clk 0:00:18]} 40. Rf1 {[%clk 0:00:17]}  c3 {[%clk 0:00:18]} 41. Nd3 {[%clk 0:00:16]}  b5 {[%clk 0:00:19]} 42. Nxb2 {[%clk 0:00:16]}  cxb2 {[%clk 0:00:19]} 43. axb5 {[%clk 0:00:16]}  axb5 {[%clk 0:00:20]} 44. Rb7 {[%clk 0:00:16]}  Nd4 {[%clk 0:00:20]} 45. Rb1 {[%clk 0:00:14]}  Bc3 {[%clk 0:00:20]} 46. Rc7 {[%clk 0:00:13]}  b4 {[%clk 0:00:20]} 47. Kg2 {[%clk 0:00:14]}  Nb3 {[%clk 0:00:19]} 48. Rd7 {[%clk 0:00:13]}  Nd2 {[%clk 0:00:19]} 49. Rxd2 {[%clk 0:00:13]}  Bxd2 {[%clk 0:00:20]} 50. Rxb2 {[%clk 0:00:14]}  Bc3 {[%clk 0:00:21]} 51. Re2 {[%clk 0:00:13]}  Kf5 {[%clk 0:00:22]} 52. Kf3 {[%clk 0:00:13]}  h4 {[%clk 0:00:22]} 53. Rc2 {[%clk 0:00:12]}  g5 {[%clk 0:00:22]} 54. fxg5 {[%clk 0:00:11]}  Kxg5 {[%clk 0:00:23]} 55. Rc1 {[%clk 0:00:12]}  Kf5 {[%clk 0:00:23]} 56. Rg1 {[%clk 0:00:12]}  b3 {[%clk 0:00:23]} 57. Ke2 {[%clk 0:00:12]}  b2 {[%clk 0:00:24]} 58. Kd3 {[%clk 0:00:12]}  Bf6 {[%clk 0:00:24]} 59. Kc2 {[%clk 0:00:12]}  Ke4 {[%clk 0:00:24]} 60. Rg4+ {[%clk 0:00:12]}  Kf3 {[%clk 0:00:25]} 61. Rg6 {[%clk 0:00:12]}  Be5 {[%clk 0:00:25]} 62. Rg5 {[%clk 0:00:12]}  Bd4 {[%clk 0:00:25]} 63. Rg4 {[%clk 0:00:12]}  Bf6 {[%clk 0:00:25]} 64. Rg6 {[%clk 0:00:12]}  Be5 {[%clk 0:00:25]} 65. Rg4 {[%clk 0:00:12]}  Bf6 {[%clk 0:00:25]} 1/2-1/2


[Site "https://www.chess.com"]

[Event "Titled Tuesday Blitz October 31 Late 2023"]
[White "Senft, Sean"]
[Black "Friedland, Moshe"]
[WhiteFideId "2044960"]
[BlackFideId "2812843"]
[WhiteElo "2334"]
[BlackElo "2499"]
[Result "1-0"]
[Round "4"]
[TimeControl "180+1"]
[Date "2023.10.31"]
[WhiteClock "0:00:13"]
[BlackClock "0:00:02"]
[Board "111"]

1. d4 {[%clk 0:03:00]}  Nf6 {[%clk 0:02:56]} 2. c4 {[%clk 0:03:01]}  c6 {[%clk 0:02:56]} 3. Nc3 {[%clk 0:03:02]}  d5 {[%clk 0:02:56]} 4. cxd5 {[%clk 0:03:01]}  cxd5 {[%clk 0:02:57]} 5. Bf4 {[%clk 0:03:01]}  Nc6 {[%clk 0:02:56]} 6. e3 {[%clk 0:03:02]}  a6 {[%clk 0:02:53]} 7. Nf3 {[%clk 0:03:02]}  Bg4 {[%clk 0:02:52]} 8. Qb3 {[%clk 0:03:01]}  Na5 {[%clk 0:02:49]} 9. Qa4+ {[%clk 0:03:02]}  Bd7 {[%clk 0:02:48]} 10. Qd1 {[%clk 0:03:01]}  e6 {[%clk 0:02:33]} 11. Bd3 {[%clk 0:03:02]}  Bb4 {[%clk 0:02:28]} 12. Rc1 {[%clk 0:03:02]}  O-O {[%clk 0:02:26]} 13. O-O {[%clk 0:03:02]}  Rc8 {[%clk 0:02:26]} 14. Ne5 {[%clk 0:02:56]}  b5 {[%clk 0:02:22]} 15. Qf3 {[%clk 0:02:51]}  Nc4 {[%clk 0:02:14]} 16. Nxc4 {[%clk 0:02:49]}  dxc4 {[%clk 0:02:07]} 17. Bb1 {[%clk 0:02:49]}  Bxc3 {[%clk 0:02:07]} 18. bxc3 {[%clk 0:02:49]}  Bc6 {[%clk 0:02:05]} 19. Qh3 {[%clk 0:02:44]}  Be4 {[%clk 0:02:03]} 20. Bxe4 {[%clk 0:02:24]}  Nxe4 {[%clk 0:02:04]} 21. f3 {[%clk 0:02:24]}  Nf6 {[%clk 0:01:35]} 22. e4 {[%clk 0:02:22]}  Nd7 {[%clk 0:01:31]} 23. Qg3 {[%clk 0:02:15]}  Kh8 {[%clk 0:01:18]} 24. Rfd1 {[%clk 0:02:07]}  f6 {[%clk 0:01:13]} 25. Qh3 {[%clk 0:02:01]}  Qe7 {[%clk 0:01:10]} 26. e5 {[%clk 0:01:55]}  Nb6 {[%clk 0:01:05]} 27. exf6 {[%clk 0:01:50]}  gxf6 {[%clk 0:01:03]} 28. Re1 {[%clk 0:01:45]}  Rce8 {[%clk 0:01:03]} 29. a4 {[%clk 0:01:17]}  Nd5 {[%clk 0:00:56]} 30. Bh6 {[%clk 0:01:17]}  Rg8 {[%clk 0:00:55]} 31. axb5 {[%clk 0:01:17]}  axb5 {[%clk 0:00:54]} 32. Re4 {[%clk 0:01:02]}  Rg6 {[%clk 0:00:46]} 33. Bd2 {[%clk 0:00:49]}  Reg8 {[%clk 0:00:43]} 34. Rce1 {[%clk 0:00:50]}  f5 {[%clk 0:00:39]} 35. Re5 {[%clk 0:00:44]}  Qg7 {[%clk 0:00:21]} 36. g3 {[%clk 0:00:35]}  b4 {[%clk 0:00:21]} 37. Rxe6 {[%clk 0:00:19]}  Rxe6 {[%clk 0:00:17]} 38. Rxe6 {[%clk 0:00:19]}  bxc3 {[%clk 0:00:18]} 39. Bh6 {[%clk 0:00:19]}  Qxd4+ {[%clk 0:00:18]} 40. Kg2 {[%clk 0:00:18]}  Qd2+ {[%clk 0:00:08]} 41. Bxd2 {[%clk 0:00:18]}  cxd2 {[%clk 0:00:09]} 42. Qxf5 {[%clk 0:00:12]}  d1=Q {[%clk 0:00:03]} 43. Qe5+ {[%clk 0:00:13]}  Rg7 {[%clk 0:00:02]} 44. Re8# {[%clk 0:00:13]} 1-0


[Site "https://www.chess.com"]

[Event "Titled Tuesday Blitz October 31 Late 2023"]
[White "Pinero Rodriguez, Carlos Jose"]
[Black "Jesseinkman"]
[WhiteFideId "3901726"]
[WhiteElo "2495"]
[BlackElo "2328"]
[Result "1/2-1/2"]
[Round "4"]
[TimeControl "180+1"]
[Date "2023.10.31"]
[WhiteClock "0:00:08"]
[BlackClock "0:00:08"]
[Board "113"]

1. d4 {[%clk 0:03:00]}  d5 {[%clk 0:03:00]} 2. c4 {[%clk 0:03:00]}  e6 {[%clk 0:03:00]} 3. Nf3 {[%clk 0:03:00]}  c5 {[%clk 0:03:00]} 4. cxd5 {[%clk 0:02:58]}  exd5 {[%clk 0:03:01]} 5. g3 {[%clk 0:02:57]}  Nc6 {[%clk 0:03:01]} 6. Bg2 {[%clk 0:02:57]}  Nf6 {[%clk 0:03:02]} 7. O-O {[%clk 0:02:57]}  Be7 {[%clk 0:03:01]} 8. Nc3 {[%clk 0:02:56]}  O-O {[%clk 0:03:01]} 9. dxc5 {[%clk 0:02:56]}  Bxc5 {[%clk 0:03:01]} 10. a3 {[%clk 0:02:56]}  a5 {[%clk 0:03:01]} 11. Bg5 {[%clk 0:02:55]}  d4 {[%clk 0:03:01]} 12. Bxf6 {[%clk 0:02:53]}  Qxf6 {[%clk 0:03:02]} 13. Ne4 {[%clk 0:02:52]}  Qe7 {[%clk 0:03:02]} 14. Nxc5 {[%clk 0:02:52]}  Qxc5 {[%clk 0:03:03]} 15. Rc1 {[%clk 0:02:50]}  Qb6 {[%clk 0:03:02]} 16. Qd2 {[%clk 0:02:50]}  Rd8 {[%clk 0:02:58]} 17. Rfd1 {[%clk 0:02:37]}  a4 {[%clk 0:02:49]} 18. h3 {[%clk 0:02:21]}  h6 {[%clk 0:02:49]} 19. Qc2 {[%clk 0:01:45]}  Be6 {[%clk 0:02:43]} 20. Rd2 {[%clk 0:01:43]}  Na5 {[%clk 0:02:17]} 21. Re1 {[%clk 0:01:00]}  Nb3 {[%clk 0:01:59]} 22. Rdd1 {[%clk 0:00:54]}  Rac8 {[%clk 0:01:57]} 23. Qe4 {[%clk 0:00:52]}  Bd5 {[%clk 0:01:40]} 24. Qf4 {[%clk 0:00:46]}  Bxf3 {[%clk 0:01:23]} 25. Bxf3 {[%clk 0:00:45]}  Rc2 {[%clk 0:01:17]} 26. Be4 {[%clk 0:00:32]}  Rxb2 {[%clk 0:01:14]} 27. Qf5 {[%clk 0:00:27]}  g6 {[%clk 0:01:14]} 28. Qf4 {[%clk 0:00:27]}  Kg7 {[%clk 0:01:14]} 29. Qe5+ {[%clk 0:00:25]}  Qf6 {[%clk 0:01:14]} 30. Qc7 {[%clk 0:00:23]}  Nd2 {[%clk 0:01:00]} 31. Bg2 {[%clk 0:00:21]}  b5 {[%clk 0:00:50]} 32. Qc1 {[%clk 0:00:20]}  Nc4 {[%clk 0:00:40]} 33. Rd3 {[%clk 0:00:19]}  Rb3 {[%clk 0:00:38]} 34. Red1 {[%clk 0:00:15]}  Rxd3 {[%clk 0:00:31]} 35. Rxd3 {[%clk 0:00:15]}  Ne5 {[%clk 0:00:31]} 36. Rd1 {[%clk 0:00:14]}  d3 {[%clk 0:00:32]} 37. exd3 {[%clk 0:00:13]}  Rxd3 {[%clk 0:00:30]} 38. Rxd3 {[%clk 0:00:13]}  Nxd3 {[%clk 0:00:30]} 39. Qe3 {[%clk 0:00:13]}  Ne5 {[%clk 0:00:14]} 40. Qc3 {[%clk 0:00:13]}  Nc4 {[%clk 0:00:11]} 41. Qb4 {[%clk 0:00:12]}  Qa1+ {[%clk 0:00:10]} 42. Bf1 {[%clk 0:00:12]}  Qxa3 {[%clk 0:00:11]} 43. Qxb5 {[%clk 0:00:10]}  Nd2 {[%clk 0:00:02]} 44. Qe5+ {[%clk 0:00:10]}  Kh7 {[%clk 0:00:03]} 45. Bg2 {[%clk 0:00:10]}  Nf3+ {[%clk 0:00:03]} 46. Bxf3 {[%clk 0:00:09]}  Qxf3 {[%clk 0:00:04]} 47. Qc7 {[%clk 0:00:09]}  a3 {[%clk 0:00:04]} 48. Qa7 {[%clk 0:00:09]}  Kg7 {[%clk 0:00:04]} 49. Qa5 {[%clk 0:00:08]}  Qd1+ {[%clk 0:00:04]} 50. Kg2 {[%clk 0:00:08]}  Qd3 {[%clk 0:00:04]} 51. Qe5+ {[%clk 0:00:07]}  Kh7 {[%clk 0:00:04]} 52. Qe7 {[%clk 0:00:07]}  Qd5+ {[%clk 0:00:04]} 53. Kh2 {[%clk 0:00:06]}  a2 {[%clk 0:00:04]} 54. Qa7 {[%clk 0:00:06]}  Qe6 {[%clk 0:00:04]} 55. Qa3 {[%clk 0:00:06]}  Kg7 {[%clk 0:00:04]} 56. h4 {[%clk 0:00:06]}  Qd5 {[%clk 0:00:03]} 57. Kg1 {[%clk 0:00:05]}  h5 {[%clk 0:00:04]} 58. Kh2 {[%clk 0:00:05]}  Kh7 {[%clk 0:00:04]} 59. Qc3 {[%clk 0:00:04]}  Qe4 {[%clk 0:00:03]} 60. Qb2 {[%clk 0:00:05]}  Qc4 {[%clk 0:00:02]} 61. Qa3 {[%clk 0:00:05]}  Qe2 {[%clk 0:00:02]} 62. Qa7 {[%clk 0:00:05]}  Qxf2+ {[%clk 0:00:01]} 63. Qxf2 {[%clk 0:00:04]}  a1=Q {[%clk 0:00:02]} 64. Qxf7+ {[%clk 0:00:04]}  Qg7 {[%clk 0:00:03]} 65. Qxg7+ {[%clk 0:00:04]}  Kxg7 {[%clk 0:00:04]} 66. Kh3 {[%clk 0:00:05]}  Kf6 {[%clk 0:00:04]} 67. g4 {[%clk 0:00:05]}  Ke5 {[%clk 0:00:04]} 68. gxh5 {[%clk 0:00:05]}  gxh5 {[%clk 0:00:05]} 69. Kg3 {[%clk 0:00:06]}  Kf5 {[%clk 0:00:06]} 70. Kf3 {[%clk 0:00:06]}  Ke5 {[%clk 0:00:07]} 71. Kg3 {[%clk 0:00:07]}  Kf5 {[%clk 0:00:08]} 72. Kf3 {[%clk 0:00:08]}  Ke5 {[%clk 0:00:08]} 73. Kg3 {[%clk 0:00:08]} 1/2-1/2


[Site "https://www.chess.com"]

[Event "Titled Tuesday Blitz October 31 Late 2023"]
[White "Korkmaz, Necmettin"]
[Black "Freile Martin, Javier"]
[WhiteFideId "6303285"]
[BlackFideId "3600165"]
[WhiteElo "2495"]
[BlackElo "2327"]
[Result "0-1"]
[Round "4"]
[TimeControl "180+1"]
[Date "2023.10.31"]
[WhiteClock "0:01:10"]
[BlackClock "0:00:32"]
[Board "114"]

1. e4 {[%clk 0:03:00]}  c5 {[%clk 0:02:58]} 2. Nc3 {[%clk 0:03:00]}  d6 {[%clk 0:02:58]} 3. f4 {[%clk 0:03:00]}  Nc6 {[%clk 0:02:58]} 4. Nf3 {[%clk 0:03:01]}  Bd7 {[%clk 0:02:54]} 5. Bc4 {[%clk 0:03:00]}  e6 {[%clk 0:02:54]} 6. O-O {[%clk 0:03:00]}  Nf6 {[%clk 0:02:53]} 7. Qe1 {[%clk 0:03:00]}  a6 {[%clk 0:02:51]} 8. a3 {[%clk 0:02:53]}  Be7 {[%clk 0:02:50]} 9. d3 {[%clk 0:02:51]}  O-O {[%clk 0:02:47]} 10. e5 {[%clk 0:02:51]}  Ne8 {[%clk 0:02:36]} 11. Qg3 {[%clk 0:02:51]}  g6 {[%clk 0:02:35]} 12. f5 {[%clk 0:02:47]}  exf5 {[%clk 0:02:31]} 13. Bh6 {[%clk 0:02:38]}  dxe5 {[%clk 0:02:10]} 14. Bxf8 {[%clk 0:02:33]}  Bxf8 {[%clk 0:02:10]} 15. Nxe5 {[%clk 0:02:30]}  Nxe5 {[%clk 0:02:09]} 16. Qxe5 {[%clk 0:02:29]}  Bc6 {[%clk 0:02:05]} 17. Rae1 {[%clk 0:02:25]}  Bg7 {[%clk 0:02:03]} 18. Qe7 {[%clk 0:02:23]}  Nd6 {[%clk 0:01:53]} 19. Nd5 {[%clk 0:01:53]}  Nxc4 {[%clk 0:01:44]} 20. Qxd8+ {[%clk 0:01:49]}  Rxd8 {[%clk 0:01:41]} 21. Ne7+ {[%clk 0:01:49]}  Kf8 {[%clk 0:01:36]} 22. Nxc6 {[%clk 0:01:49]}  bxc6 {[%clk 0:01:34]} 23. dxc4 {[%clk 0:01:50]}  Bxb2 {[%clk 0:01:30]} 24. Rd1 {[%clk 0:01:46]}  Rd4 {[%clk 0:01:20]} 25. Rxd4 {[%clk 0:01:43]}  cxd4 {[%clk 0:01:20]} 26. Rd1 {[%clk 0:01:43]}  Bxa3 {[%clk 0:01:20]} 27. Kf1 {[%clk 0:01:43]}  c5 {[%clk 0:01:19]} 28. Ra1 {[%clk 0:01:42]}  Bb4 {[%clk 0:01:18]} 29. Rxa6 {[%clk 0:01:42]}  Ke7 {[%clk 0:01:16]} 30. Ke2 {[%clk 0:01:40]}  h5 {[%clk 0:01:15]} 31. h3 {[%clk 0:01:38]}  Kf8 {[%clk 0:01:07]} 32. Kf3 {[%clk 0:01:36]}  Kg7 {[%clk 0:01:05]} 33. Kf4 {[%clk 0:01:36]}  Bd2+ {[%clk 0:01:03]} 34. Ke5 {[%clk 0:01:36]}  Be3 {[%clk 0:00:51]} 35. Ra7 {[%clk 0:01:29]}  h4 {[%clk 0:00:48]} 36. Rc7 {[%clk 0:01:28]}  Bf2 {[%clk 0:00:45]} 37. Kd6 {[%clk 0:01:25]}  Bg3+ {[%clk 0:00:44]} 38. Kc6 {[%clk 0:01:25]}  Bxc7 {[%clk 0:00:44]} 39. Kxc7 {[%clk 0:01:26]}  g5 {[%clk 0:00:42]} 40. Kc6 {[%clk 0:01:26]}  f4 {[%clk 0:00:33]} 41. Kxc5 {[%clk 0:01:26]}  g4 {[%clk 0:00:33]} 42. Kxd4 {[%clk 0:01:26]}  f3 {[%clk 0:00:33]} 43. Ke3 {[%clk 0:01:15]}  fxg2 {[%clk 0:00:32]} 44. Kf2 {[%clk 0:01:15]}  gxh3 {[%clk 0:00:31]} 45. c5 {[%clk 0:01:14]}  Kf8 {[%clk 0:00:32]} 46. Kg1 {[%clk 0:01:11]}  Ke7 {[%clk 0:00:32]} 47. Kh2 {[%clk 0:01:10]}  Kd7 {[%clk 0:00:32]} 0-1


[Site "https://www.chess.com"]

[Event "Titled Tuesday Blitz October 31 Late 2023"]
[White "Czerw, Dawid"]
[Black "Ward, Ieuan C"]
[WhiteFideId "1145746"]
[BlackFideId "406627"]
[WhiteElo "2494"]
[BlackElo "2323"]
[Result "0-1"]
[Round "4"]
[TimeControl "180+1"]
[Date "2023.10.31"]
[WhiteClock "0:00:00"]
[BlackClock "0:00:06"]
[Board "115"]

1. d4 {[%clk 0:03:00]}  Nf6 {[%clk 0:02:59]} 2. c4 {[%clk 0:03:01]}  e6 {[%clk 0:02:59]} 3. Nc3 {[%clk 0:03:01]}  d5 {[%clk 0:02:58]} 4. cxd5 {[%clk 0:03:01]}  Nxd5 {[%clk 0:02:58]} 5. e4 {[%clk 0:03:01]}  Nxc3 {[%clk 0:02:57]} 6. bxc3 {[%clk 0:03:02]}  c5 {[%clk 0:02:56]} 7. Nf3 {[%clk 0:03:02]}  Nc6 {[%clk 0:02:55]} 8. Rb1 {[%clk 0:02:59]}  cxd4 {[%clk 0:02:53]} 9. cxd4 {[%clk 0:02:59]}  Bb4+ {[%clk 0:02:53]} 10. Bd2 {[%clk 0:02:59]}  Bxd2+ {[%clk 0:02:53]} 11. Qxd2 {[%clk 0:02:59]}  O-O {[%clk 0:02:52]} 12. Bc4 {[%clk 0:02:58]}  b6 {[%clk 0:02:48]} 13. O-O {[%clk 0:02:57]}  Na5 {[%clk 0:02:48]} 14. Bd3 {[%clk 0:02:54]}  Bb7 {[%clk 0:02:42]} 15. h3 {[%clk 0:02:41]}  g6 {[%clk 0:02:37]} 16. Qh6 {[%clk 0:02:37]}  Qf6 {[%clk 0:02:32]} 17. h4 {[%clk 0:02:21]}  Qg7 {[%clk 0:02:32]} 18. Qf4 {[%clk 0:02:19]}  h6 {[%clk 0:02:26]} 19. Rfd1 {[%clk 0:02:13]}  Rac8 {[%clk 0:02:22]} 20. Ne5 {[%clk 0:02:07]}  Nc6 {[%clk 0:02:13]} 21. Nd7 {[%clk 0:01:57]}  Rfd8 {[%clk 0:02:06]} 22. Nf6+ {[%clk 0:01:51]}  Kh8 {[%clk 0:01:45]} 23. d5 {[%clk 0:01:28]}  e5 {[%clk 0:01:41]} 24. Qe3 {[%clk 0:01:26]}  Qxf6 {[%clk 0:01:22]} 25. Qxh6+ {[%clk 0:01:25]}  Kg8 {[%clk 0:01:22]} 26. dxc6 {[%clk 0:01:26]}  Rxc6 {[%clk 0:01:16]} 27. Be2 {[%clk 0:00:46]}  Rcd6 {[%clk 0:01:12]} 28. Rxd6 {[%clk 0:00:38]}  Rxd6 {[%clk 0:01:10]} 29. Rc1 {[%clk 0:00:25]}  Rc6 {[%clk 0:01:10]} 30. Rd1 {[%clk 0:00:09]}  Rc8 {[%clk 0:01:00]} 31. h5 {[%clk 0:00:03]}  Bxe4 {[%clk 0:00:56]} 32. hxg6 {[%clk 0:00:03]}  Qxg6 {[%clk 0:00:52]} 33. Qh3 {[%clk 0:00:03]}  Bf5 {[%clk 0:00:44]} 34. Qe3 {[%clk 0:00:02]}  Re8 {[%clk 0:00:39]} 35. Bf3 {[%clk 0:00:01]}  e4 {[%clk 0:00:38]} 36. Be2 {[%clk 0:00:01]}  Kg7 {[%clk 0:00:28]} 37. Qf4 {[%clk 0:00:02]}  Rh8 {[%clk 0:00:24]} 38. g3 {[%clk 0:00:02]}  Qh6 {[%clk 0:00:21]} 39. Qxh6+ {[%clk 0:00:01]}  Rxh6 {[%clk 0:00:20]} 40. Rd5 {[%clk 0:00:02]}  Be6 {[%clk 0:00:16]} 41. Rd8 {[%clk 0:00:02]}  Bxa2 {[%clk 0:00:15]} 42. Ra8 {[%clk 0:00:01]}  a5 {[%clk 0:00:16]} 43. Bb5 {[%clk 0:00:01]}  Bb3 {[%clk 0:00:14]} 44. Kg2 {[%clk 0:00:01]}  Rd6 {[%clk 0:00:13]} 45. g4 {[%clk 0:00:02]}  Rd2 {[%clk 0:00:13]} 46. Rb8 {[%clk 0:00:01]}  e3 {[%clk 0:00:12]} 47. Kg3 {[%clk 0:00:01]}  exf2 {[%clk 0:00:12]} 48. Kg2 {[%clk 0:00:01]}  a4 {[%clk 0:00:09]} 49. Rxb6 {[%clk 0:00:02]}  Rd5 {[%clk 0:00:09]} 50. Bc6 {[%clk 0:00:01]}  Rd6 {[%clk 0:00:09]} 51. Kxf2 {[%clk 0:00:02]}  Bd5 {[%clk 0:00:09]} 52. Rb4 {[%clk 0:00:01]}  Bxc6 {[%clk 0:00:08]} 53. Rc4 {[%clk 0:00:02]}  Bb5 {[%clk 0:00:08]} 54. Rb4 {[%clk 0:00:02]}  Rb6 {[%clk 0:00:08]} 55. Kg3 {[%clk 0:00:01]}  a3 {[%clk 0:00:09]} 56. Rb3 {[%clk 0:00:00]}  Ra6 {[%clk 0:00:06]} 0-1


[Site "https://www.chess.com"]

[Event "Titled Tuesday Blitz October 31 Late 2023"]
[White "Dudzinski, Pawel"]
[Black "Buscar, Michael"]
[WhiteFideId "1117890"]
[BlackFideId "2603616"]
[WhiteElo "2494"]
[BlackElo "2321"]
[Result "0-1"]
[Round "4"]
[TimeControl "180+1"]
[Date "2023.10.31"]
[WhiteClock "0:00:00"]
[BlackClock "0:00:13"]
[Board "116"]

1. e4 {[%clk 0:03:00]}  c5 {[%clk 0:02:58]} 2. Nc3 {[%clk 0:02:59]}  g6 {[%clk 0:02:56]} 3. d3 {[%clk 0:02:56]}  Bg7 {[%clk 0:02:56]} 4. Be3 {[%clk 0:02:57]}  d6 {[%clk 0:02:55]} 5. g3 {[%clk 0:02:57]}  Nc6 {[%clk 0:02:54]} 6. Bg2 {[%clk 0:02:58]}  Nf6 {[%clk 0:02:52]} 7. h3 {[%clk 0:02:58]}  O-O {[%clk 0:02:51]} 8. Qd2 {[%clk 0:02:58]}  Re8 {[%clk 0:02:50]} 9. f4 {[%clk 0:02:57]}  Rb8 {[%clk 0:02:49]} 10. Nge2 {[%clk 0:02:57]}  Nd4 {[%clk 0:02:46]} 11. Nxd4 {[%clk 0:02:51]}  cxd4 {[%clk 0:02:47]} 12. Bxd4 {[%clk 0:02:51]}  b5 {[%clk 0:02:45]} 13. Bxa7 {[%clk 0:02:50]}  Ra8 {[%clk 0:02:43]} 14. Bf2 {[%clk 0:02:46]}  b4 {[%clk 0:02:42]} 15. Nd1 {[%clk 0:02:44]}  Nd7 {[%clk 0:02:40]} 16. Qxb4 {[%clk 0:02:37]}  Rb8 {[%clk 0:02:35]} 17. Qa3 {[%clk 0:02:01]}  Qc7 {[%clk 0:02:33]} 18. c3 {[%clk 0:01:54]}  e5 {[%clk 0:02:27]} 19. Qa4 {[%clk 0:01:42]}  exf4 {[%clk 0:02:24]} 20. gxf4 {[%clk 0:01:43]}  Rxb2 {[%clk 0:02:21]} 21. O-O {[%clk 0:01:35]}  Rd2 {[%clk 0:02:16]} 22. d4 {[%clk 0:01:30]}  Nf6 {[%clk 0:02:13]} 23. e5 {[%clk 0:01:25]}  Bd7 {[%clk 0:02:13]} 24. Qa3 {[%clk 0:00:57]}  dxe5 {[%clk 0:02:12]} 25. fxe5 {[%clk 0:00:54]}  Bf8 {[%clk 0:02:12]} 26. Qc1 {[%clk 0:00:52]}  Bh6 {[%clk 0:02:09]} 27. exf6 {[%clk 0:00:38]}  Ree2 {[%clk 0:02:09]} 28. Qb1 {[%clk 0:00:20]}  Qf4 {[%clk 0:01:27]} 29. Qb7 {[%clk 0:00:15]}  Bf5 {[%clk 0:01:12]} 30. Qa8+ {[%clk 0:00:15]}  Bf8 {[%clk 0:01:12]} 31. Qf3 {[%clk 0:00:15]}  Qg5 {[%clk 0:01:05]} 32. Re1 {[%clk 0:00:14]}  Be4 {[%clk 0:00:57]} 33. Qxe4 {[%clk 0:00:07]}  Rxe4 {[%clk 0:00:55]} 34. Rxe4 {[%clk 0:00:08]}  Qxf6 {[%clk 0:00:52]} 35. Be3 {[%clk 0:00:05]}  Re2 {[%clk 0:00:38]} 36. Bg5 {[%clk 0:00:04]}  Qa6 {[%clk 0:00:38]} 37. Bf1 {[%clk 0:00:02]}  Qb5 {[%clk 0:00:27]} 38. Rxe2 {[%clk 0:00:03]}  Qxg5+ {[%clk 0:00:27]} 39. Rg2 {[%clk 0:00:03]}  Qf4 {[%clk 0:00:23]} 40. a4 {[%clk 0:00:04]}  Bd6 {[%clk 0:00:15]} 41. a5 {[%clk 0:00:04]}  Bb8 {[%clk 0:00:16]} 42. a6 {[%clk 0:00:04]}  Ba7 {[%clk 0:00:17]} 43. Nf2 {[%clk 0:00:03]}  h5 {[%clk 0:00:16]} 44. Nd3 {[%clk 0:00:00]}  Bxd4+ {[%clk 0:00:13]} 0-1


[Site "https://www.chess.com"]

[Event "Titled Tuesday Blitz October 31 Late 2023"]
[White "Tworuszka, Michal"]
[Black "Shapiro, Daniel"]
[WhiteFideId "1117858"]
[BlackFideId "2001780"]
[WhiteElo "2489"]
[BlackElo "2316"]
[Result "0-1"]
[Round "4"]
[TimeControl "180+1"]
[Date "2023.10.31"]
[WhiteClock "0:00:02"]
[BlackClock "0:00:14"]
[Board "117"]

1. d4 {[%clk 0:03:00]}  Nf6 {[%clk 0:02:59]} 2. c4 {[%clk 0:03:01]}  e6 {[%clk 0:02:59]} 3. Nc3 {[%clk 0:02:59]}  Bb4 {[%clk 0:02:58]} 4. f3 {[%clk 0:02:59]}  c5 {[%clk 0:02:56]} 5. d5 {[%clk 0:02:59]}  b5 {[%clk 0:02:56]} 6. e4 {[%clk 0:02:59]}  O-O {[%clk 0:02:55]} 7. Ne2 {[%clk 0:02:58]}  bxc4 {[%clk 0:02:51]} 8. Nf4 {[%clk 0:02:57]}  exd5 {[%clk 0:02:40]} 9. Nxd5 {[%clk 0:02:56]}  Nxd5 {[%clk 0:02:34]} 10. Qxd5 {[%clk 0:02:49]}  Nc6 {[%clk 0:02:29]} 11. Bxc4 {[%clk 0:02:48]}  Bb7 {[%clk 0:02:09]} 12. Qd1 {[%clk 0:02:46]}  Qh4+ {[%clk 0:01:53]} 13. g3 {[%clk 0:02:41]}  Qh3 {[%clk 0:01:53]} 14. Bf1 {[%clk 0:02:31]}  Qe6 {[%clk 0:01:43]} 15. Be3 {[%clk 0:02:12]}  f5 {[%clk 0:01:36]} 16. Qd5 {[%clk 0:00:59]}  Nd4 {[%clk 0:01:36]} 17. Qxe6+ {[%clk 0:00:57]}  dxe6 {[%clk 0:01:33]} 18. Kf2 {[%clk 0:00:48]}  fxe4 {[%clk 0:01:25]} 19. f4 {[%clk 0:00:47]}  Rac8 {[%clk 0:01:01]} 20. Bc4 {[%clk 0:00:45]}  Kh8 {[%clk 0:00:56]} 21. a3 {[%clk 0:00:35]}  Ba5 {[%clk 0:00:53]} 22. Rac1 {[%clk 0:00:20]}  e5 {[%clk 0:00:52]} 23. Rhd1 {[%clk 0:00:16]}  exf4 {[%clk 0:00:47]} 24. gxf4 {[%clk 0:00:14]}  Bd8 {[%clk 0:00:45]} 25. Kg2 {[%clk 0:00:04]}  Bc7 {[%clk 0:00:34]} 26. Bd5 {[%clk 0:00:03]}  Ba6 {[%clk 0:00:23]} 27. Bxe4 {[%clk 0:00:02]}  Bxf4 {[%clk 0:00:23]} 28. Bxf4 {[%clk 0:00:02]}  Rxf4 {[%clk 0:00:23]} 29. Bd3 {[%clk 0:00:01]}  Bb7+ {[%clk 0:00:20]} 30. Kg3 {[%clk 0:00:01]}  Rf3+ {[%clk 0:00:19]} 31. Kg4 {[%clk 0:00:02]}  Rcf8 {[%clk 0:00:18]} 32. Rf1 {[%clk 0:00:02]}  R8f4+ {[%clk 0:00:17]} 33. Kg5 {[%clk 0:00:02]}  Ne6+ {[%clk 0:00:14]} 34. Kh5 {[%clk 0:00:02]}  Rh3# {[%clk 0:00:14]} 0-1


[Site "https://www.chess.com"]